lending/lending_fUSD_20251107
["ID","MTS","AMOUNT","RATE_DAILY","PERIOD"]
[393347168,1762499442447,-166.66,0.00030577,30]
[393347169,1762499442458,-884.15415734,0.00030578,2]
[393347170,1762499442467,-500.0,0.00030622,30]
[393347171,1762499442477,-4469.8514507,0.00030631,3]
[393347172,1762499442614,-498.0,0.00030651,2]
[393347173,1762499442644,-513.0,0.00030651,2]
[393347174,1762499442654,-671.92,0.00030685,30]
[393347175,1762499442663,-884.15415734,0.00030749,2]
[393347176,1762499442672,-500.0,0.00030759,30]
[393347177,1762499442682,-4469.8514507,0.00030767,3]
[393347178,1762499442692,-155.0,0.00030777,7]
[393347179,1762499442702,-152.0,0.00030777,7]
[393347180,1762499442711,-1391.75150663,0.00030777,7]
[393347181,1762499442720,-152.0,0.00030777,7]
[393347182,1762499442730,-155.07611425,0.00030777,7]
[393347183,1762499442739,-155.37333694,0.00030777,7]
[393347184,1762499442748,-152.0,0.00030777,7]
[393347185,1762499442757,-240.31495822,0.00030777,7]
[393347186,1762499442766,-826.0,0.00030777,7]
[393347187,1762499442776,-151.0,0.00030777,7]
[393347188,1762499442787,-151.0,0.00030777,7]
[393347189,1762499442796,-151.0,0.00030777,7]
[393347190,1762499442806,-151.0,0.00030777,7]
[393347191,1762499442815,-151.0,0.00030777,7]
[393347192,1762499442824,-151.0,0.00030777,7]
[393347193,1762499442833,-151.0,0.00030777,7]
[393347194,1762499442842,-151.0,0.00030777,7]
[393347195,1762499442852,-151.0,0.00030777,7]
[393347196,1762499442862,-151.0,0.00030777,7]
[393347197,1762499442871,-151.0,0.00030777,7]
[393347198,1762499442881,-151.0,0.00030777,7]
[393347199,1762499442890,-151.0,0.00030777,7]
[393347200,1762499442899,-151.0,0.00030777,7]
[393347201,1762499442907,-151.0,0.00030777,7]
[393347202,1762499442916,-151.0,0.00030777,7]
[393347203,1762499442926,-151.0,0.00030777,7]
[393347204,1762499442935,-151.0,0.00030777,7]
[393347205,1762499442944,-151.0,0.00030777,7]
[393347206,1762499442954,-151.0,0.00030777,7]
[393347207,1762499442963,-151.0,0.00030777,7]
[393347208,1762499442972,-151.0,0.00030777,7]
[393347209,1762499442982,-151.0,0.00030777,7]
[393347210,1762499442991,-151.0,0.00030777,7]
[393347211,1762499443000,-151.0,0.00030777,7]
[393347212,1762499443009,-151.0,0.00030777,7]
[393347213,1762499443018,-151.0,0.00030777,7]
[393347214,1762499443031,-151.0,0.00030777,7]
[393347216,1762499443041,-151.0,0.00030777,7]
[393347217,1762499443049,-151.0,0.00030777,7]
[393347218,1762499443059,-151.0,0.00030777,7]
[393347219,1762499443068,-151.0,0.00030777,7]
[393347220,1762499443078,-151.0,0.00030777,7]
[393347221,1762499443087,-151.0,0.00030777,7]
[393347222,1762499443096,-151.0,0.00030777,7]
[393347223,1762499443107,-151.0,0.00030777,7]
[393347224,1762499443117,-151.0,0.00030777,7]
[393347225,1762499443126,-151.0,0.00030777,7]
[393347226,1762499443136,-151.0,0.00030777,7]
[393347227,1762499443145,-151.0,0.00030777,7]
[393347228,1762499443154,-151.0,0.00030777,7]
[393347229,1762499443163,-151.0,0.00030777,7]
[393347230,1762499443172,-151.0,0.00030777,7]
[393347231,1762499443182,-151.0,0.00030777,7]
[393347232,1762499443191,-190.52655264,0.00030777,7]
[393347233,1762499443200,-498.0,0.00030788,2]
[393347234,1762499443209,-513.0,0.00030788,2]
[393347235,1762499443218,-216.39743355,0.00030858,2]
[393347236,1762499443227,-500.0,0.00030896,30]
[393347237,1762499443237,-498.0,0.00030925,2]
[393347238,1762499443246,-513.0,0.00030925,2]
[393347239,1762499443255,-318.462002,0.00030982,15]
[393347241,1762499443264,-884.15415734,0.00031005,2]
[393347242,1762499443273,-216.39743355,0.00031021,2]
[393347243,1762499443283,-500.0,0.00031033,30]
[393347244,1762499443293,-4469.8514507,0.00031052,3]
[393347245,1762499443302,-498.0,0.00031062,2]
[393347246,1762499443311,-513.0,0.00031062,2]
[393347247,1762499443321,-480.31,0.00031075,2]
[393347248,1762499443330,-485.75988998,0.00031103,2]
[393347249,1762499443339,-500.0,0.0003117,30]
[393347250,1762499443349,-166.66,0.00031171,30]
[393347252,1762499443358,-498.0,0.00031199,2]
[393347254,1762499443366,-513.0,0.00031199,2]
[393347255,1762499443375,-4469.8514507,0.00031232,3]
[393347256,1762499443385,-6050.81740327,0.00031242,2]
[393347257,1762499443394,-884.15415734,0.00031249,2]
[393347258,1762499443403,-216.39743355,0.00031298,2]
[393347259,1762499443413,-500.0,0.00031307,30]
[393347260,1762499443423,-16777.9887647,0.00031326,3]
[393347261,1762499443431,-498.0,0.00031336,2]
[393347262,1762499443441,-513.0,0.00031336,2]
[393347263,1762499443450,-500.0,0.00031444,30]
[393347264,1762499443459,-3305.31337429,0.0003145,2]
[393347265,1762499443469,-498.0,0.00031473,2]
[393347266,1762499443478,-513.0,0.00031473,2]
[393347267,1762499443487,-4469.8514507,0.00031491,3]
[393347268,1762499443496,-1000.0,0.00031501,2]
[393347269,1762499443505,-500.0,0.00031507,30]
[393347270,1762499443514,-568.34005802,0.00031581,30]
[393347271,1762499443523,-2000.0,0.000316,2]
[393347272,1762499443532,-498.0,0.0003161,2]
[393347273,1762499443541,-513.0,0.0003161,2]
[393347274,1762499443550,-216.39743355,0.0003164,2]
[393347275,1762499443559,-500.0,0.00031644,30]
[393347276,1762499443569,-884.15415734,0.00031651,2]
[393347277,1762499443578,-4469.8514507,0.00031737,3]
[393347278,1762499443587,-498.0,0.00031747,2]
[393347279,1762499443596,-513.0,0.00031747,2]
[393347280,1762499443606,-4469.8514507,0.00031781,3]
[393347281,1762499443615,-206.27494664,0.00031781,30]
[393347282,1762499443625,-4469.8514507,0.00031864,3]
[393347283,1762499443633,-16777.9887647,0.00031864,3]
[393347284,1762499443642,-5000.0,0.00031874,5]
[393347285,1762499443651,-498.0,0.00031884,2]
[393347286,1762499443659,-513.0,0.00031884,2]
[393347287,1762499443668,-216.39743356,0.00031924,2]
[393347288,1762499443677,-151.0,0.00031951,7]
[393347289,1762499443686,-53638.2174084,0.00031954,3]
[393347290,1762499443695,-100667.932588,0.00031954,3]
[393347291,1762499443704,-234891.842706,0.00031964,3]
[393347292,1762499443713,-1000.0,0.00031966,120]
[393347293,1762499443723,-391105.39678664,0.00031974,2]
[393347294,1762499443912,-500.0,0.00015137,2]
[393347295,1762499443922,-3243.22100299,0.00031974,2]
[393347296,1762499443940,-620.36104505,0.00031974,2]
[393347297,1762499444125,-150.0,0.00025833,2]
[393347298,1762499444135,-150.1564337,0.0002597,2]
[393347299,1762499444144,-1939.7935663,0.0003184,2]
[393347300,1762499444171,-5060.2064337,0.0003184,2]
[393347301,1762499444180,-22546.4935105,0.00031974,2]
[393347309,1762499446442,-500.0,0.00015137,2]
[393347310,1762499446452,-2484.52765482,0.00031974,2]
[393347311,1762499446461,-1000.0,0.00031974,2]
[393347312,1762499446470,-8637.30729377,0.00031974,2]
[393347313,1762499446579,-5142.69567176,0.00031974,2]
[393347317,1762499511050,200000.0,0.00038708,30]
[393347318,1762499535873,100000.0,0.00038708,30]
[393347337,1762499709657,41448.44,0.00038708,30]
[393347348,1762500165325,16129.7469354,0.00038704,120]
[393347354,1762500228134,166.38,0.0002764,120]
[393347359,1762500311298,-150.0,0.000151,2]
[393347360,1762500311327,-201.58481839,0.00015125,2]
[393347361,1762500311355,-250.0,0.00015126,2]
[393347362,1762500311384,-300.0,0.00015127,2]
[393347363,1762500311412,-300.0,0.00015127,2]
[393347364,1762500311442,-1200.0,0.00015127,2]
[393347365,1762500311472,-151.0,0.00015128,2]
[393347366,1762500311501,-151.0,0.00015128,2]
[393347367,1762500311529,-151.0,0.00015128,2]
[393347368,1762500311558,-151.0,0.00015128,2]
[393347369,1762500311588,-151.0,0.00015128,2]
[393347370,1762500311617,-151.0,0.00015128,2]
[393347371,1762500311646,-151.0,0.00015128,2]
[393347372,1762500311676,-151.0,0.00015128,2]
[393347373,1762500311704,-151.0,0.00015128,2]
[393347374,1762500311732,-151.0,0.00015128,2]
[393347375,1762500311760,-151.0,0.00015128,2]
[393347376,1762500311793,-151.0,0.00015128,2]
[393347377,1762500311825,-151.0,0.00015128,2]
[393347378,1762500311854,-151.0,0.00015128,2]
[393347379,1762500311881,-252.07551842,0.00015128,2]
[393347380,1762500311909,-500.0,0.00015137,2]
[393347381,1762500311936,-500.0,0.00015137,2]
[393347382,1762500311963,-500.0,0.00015137,2]
[393347383,1762500311991,-500.0,0.00015137,2]
[393347384,1762500312019,-500.0,0.00015137,2]
[393347385,1762500312046,-500.0,0.00015137,2]
[393347386,1762500312072,-500.0,0.00015137,2]
[393347387,1762500312100,-500.0,0.00015137,2]
[393347388,1762500312125,-500.0,0.00015137,2]
[393347389,1762500312152,-500.0,0.00015137,2]
[393347390,1762500312179,-500.0,0.00015137,2]
[393347391,1762500312205,-500.0,0.00015137,2]
[393347392,1762500312232,-500.0,0.00015137,2]
[393347393,1762500312258,-500.0,0.00015137,2]
[393347394,1762500312286,-500.0,0.00015137,2]
[393347395,1762500312320,-500.0,0.00015137,2]
[393347396,1762500312350,-500.0,0.00015137,2]
[393347397,1762500312377,-500.0,0.00015137,2]
[393347399,1762500392865,3918.0,0.00038705,30]
[393347400,1762500414924,100286.445,0.00038705,30]
[393347404,1762500470008,22464.67932638,0.00015,2]
[393347405,1762500470034,13734.17083538,0.00015,2]
[393347408,1762500487486,246.98,0.00030136,120]
[393347413,1762500514345,6265.82916462,0.00015,3]
[393347414,1762500514383,91436.54878831,0.00015,3]
[393347415,1762500515185,9407.34128282,0.00015,2]
[393347439,1762500631640,-250.0,0.00016419,2]
[393347440,1762500631650,-250.0,0.00017,2]
[393347441,1762500631659,-249.15726767,0.0001782,2]
[393347442,1762500631670,-0.84273233,0.0001782,2]
[393347443,1762500631679,-3630.49044198,0.00017914,2]
[393347444,1762500631688,-1200.0,0.00017947,2]
[393347445,1762500631698,-13623.96744295,0.00017948,2]
[393347446,1762500631707,-303.59993129,0.00017948,2]
[393347447,1762500631716,-869.02493582,0.00017948,2]
[393347448,1762500631725,-171.69295478,0.00017948,2]
[393347449,1762500631734,-500.0,0.00017973,2]
[393347450,1762500631743,-163.36,0.0001799,2]
[393347451,1762500631752,-216.0,0.00017998,2]
[393347452,1762500631762,-162.20201972,0.00017999,2]
[393347453,1762500631771,-500.0,0.00017999,2]
[393347454,1762500631780,-214.47821084,0.00017999,2]
[393347455,1762500631789,-283.25565424,0.00017999,2]
[393347456,1762500631798,-144758.79925333,0.00018,2]
[393347457,1762500631816,-3912.89822994,0.00018,2]
[393347458,1762500631827,-1231.20141571,0.00018,2]
[393347459,1762500631845,-24228.17136386,0.00018,2]
[393347460,1762500631855,-773.89796035,0.00018,2]
[393347461,1762500631866,-565.0,0.00018,2]
[393347462,1762500631877,-2623.40982985,0.00018,2]
[393347463,1762500631891,-1255.11168964,0.00018,2]
[393347464,1762500631902,-22497.10019236,0.00018,2]
[393347465,1762500631913,-33479.54934292,0.00018,2]
[393347466,1762500631923,-2022.37734242,0.00018,2]
[393347497,1762500637428,-917.21988185,0.00018,2]
[393347498,1762500637439,-1512.06814833,0.00018,2]
[393347499,1762500637519,-6337.42619871,0.00018,2]
[393347500,1762500637611,-261.25000005,0.00018,2]
[393347501,1762500637628,-419.075,0.00018,2]
[393347502,1762500637646,-3338251.17343316,0.00018,2]
[393347551,1762500639550,-524.16,0.00018,2]
[393347552,1762500639562,-392105.39678664,0.00018,2]
[393347553,1762500639640,-1408.96817405,0.00018,2]
[393347554,1762500639651,-370.23570653,0.00018,2]
[393347555,1762500640054,-545.52905858,0.00018,2]
[393347556,1762500640077,-8383.0,0.00018,2]
[393347557,1762500640087,-7545.0,0.00018,2]
[393347562,1762500644394,-8632.86188468,0.00018,2]
[393347563,1762500644629,-34076.10916172,0.00018,2]
[393347571,1762500645653,-1600.11672654,0.00018,2]
[393347572,1762500645817,-11651.35184316,0.00018,2]
[393347573,1762500646047,-655.9187631,0.00018,2]
[393347574,1762500646058,-369.369,0.00018,2]
[393347575,1762500646069,-52595.11791045,0.00018,2]
[393347942,1762501030506,249.14454842,0.00038705,120]
[393347945,1762501230906,511.0008274,0.0003,120]
[393347967,1762501470962,663.49,0.00013699,2]
[393347975,1762501533921,45157.99088232,0.00038701,30]
[393347977,1762501680582,500.0,0.00038701,30]
[393347982,1762501831621,-150.0,0.000167,2]
[393347983,1762501831631,-192.28,0.00016712,2]
[393347984,1762501831641,-529.70025582,0.00016986,2]
[393347985,1762501831653,-258.38525471,0.00016986,2]
[393347988,1762501831666,-252.95448947,0.00016986,2]
[393347989,1762501831676,-168.23,0.00017032,2]
[393347990,1762501831686,-276.33,0.00017058,2]
[393347991,1762501831696,-104.46814069,0.00017114,2]
[393347992,1762501831715,-306.58185931,0.00017114,2]
[393347993,1762501831728,-569.30741426,0.00017155,2]
[393347994,1762501831740,-445.88258574,0.00017155,2]
[393347995,1762501831750,-250.0,0.00017293,2]
[393347996,1762501831760,-160.0,0.00017526,2]
[393347997,1762501831770,-300.0,0.00017527,2]
[393347998,1762501831780,-300.0,0.00017527,2]
[393347999,1762501831797,-300.0,0.00017527,2]
[393348000,1762501831807,-1200.0,0.00017527,2]
[393348001,1762501831817,-1200.0,0.00017528,2]
[393348002,1762501831828,-5283.01,0.00017529,2]
[393348003,1762501831838,-1852.42,0.00017581,2]
[393348004,1762501831848,-4747.885,0.00017639,2]
[393348005,1762501831858,-189.5,0.00017639,2]
[393348006,1762501831868,-884.1541574,0.00017701,2]
[393348007,1762501831878,-166.66,0.0001779,2]
[393348008,1762501831888,-550.0,0.00017898,2]
[393348009,1762501831898,-3848.471,0.00017899,2]
[393348010,1762501831908,-234.3744,0.00017899,2]
[393348011,1762501831918,-279.795,0.00017899,2]
[393348012,1762501831928,-12330.20921134,0.00017899,2]
[393348013,1762501831938,-3267.4413978,0.00017899,2]
[393348014,1762501831953,-288.49552698,0.00017899,2]
[393348015,1762501831962,-250.2089918,0.00017899,2]
[393348016,1762501831972,-62015.80173519,0.000179,3]
[393348017,1762501831982,-2751.0,0.00017961,2]
[393348018,1762501831991,-500.0,0.00017973,2]
[393348019,1762501832001,-500.0,0.00017973,2]
[393348020,1762501832011,-500.0,0.00017973,2]
[393348021,1762501832020,-500.0,0.00017973,2]
[393348022,1762501832030,-500.0,0.00017973,2]
[393348023,1762501832039,-500.0,0.00017973,2]
[393348024,1762501832049,-500.0,0.00017973,2]
[393348025,1762501832059,-501.0816036,0.00017973,2]
[393348026,1762501832070,-500.0,0.00017973,2]
[393348027,1762501832079,-269.52066072,0.00017973,2]
[393348028,1762501832088,-500.64822633,0.00017973,2]
[393348029,1762501832098,-500.0,0.00017973,2]
[393348030,1762501832108,-500.0,0.00017973,2]
[393348031,1762501832118,-200.20712979,0.00017973,2]
[393348033,1762501832128,-505.63349764,0.00017973,2]
[393348035,1762501832138,-500.0,0.00017973,2]
[393348037,1762501832148,-500.0,0.00017973,2]
[393348039,1762501832158,-500.0,0.00017973,2]
[393348040,1762501832168,-502.06961086,0.00017973,2]
[393348041,1762501832177,-500.0,0.00017973,2]
[393348042,1762501832187,-500.0,0.00017973,2]
[393348043,1762501832197,-607.54870183,0.00017973,2]
[393348044,1762501832207,-295.47901701,0.00017973,2]
[393348045,1762501832217,-214.84899531,0.00017973,2]
[393348046,1762501832226,-500.0,0.00017973,2]
[393348047,1762501832236,-204.28733051,0.00017973,2]
[393348048,1762501832246,-608.63540489,0.00017973,2]
[393348049,1762501832256,-151.0,0.00017988,2]
[393348050,1762501832266,-151.0,0.00017988,2]
[393348051,1762501832275,-208.7547261,0.00017988,2]
[393348052,1762501832286,-151.0,0.00017988,2]
[393348053,1762501832297,-151.0,0.00017988,2]
[393348054,1762501832307,-151.0,0.00017988,2]
[393348055,1762501832316,-151.0,0.00017988,2]
[393348056,1762501832326,-151.0,0.00017988,2]
[393348057,1762501832335,-151.0,0.00017988,2]
[393348058,1762501832345,-151.0,0.00017988,2]
[393348059,1762501832355,-151.0,0.00017988,2]
[393348060,1762501832365,-151.0,0.00017988,2]
[393348061,1762501832375,-151.0,0.00017988,2]
[393348062,1762501832386,-151.0,0.00017988,2]
[393348063,1762501832395,-151.0,0.00017988,2]
[393348064,1762501832405,-151.0,0.00017988,2]
[393348065,1762501832415,-151.0,0.00017996,2]
[393348066,1762501832425,-548.27895796,0.00017998,2]
[393348067,1762501832435,-150.13474758,0.00017998,2]
[393348068,1762501832445,-500.0,0.00017998,2]
[393348069,1762501832455,-528.75,0.00017998,2]
[393348070,1762501832464,-500.0,0.00017998,2]
[393348071,1762501832473,-500.0,0.00017998,2]
[393348072,1762501832483,-500.0,0.00017998,2]
[393348073,1762501832493,-500.0,0.00017998,2]
[393348074,1762501832502,-500.0,0.00017998,2]
[393348075,1762501832512,-505.04241582,0.00017998,2]
[393348076,1762501832522,-1000.0,0.00017999,2]
[393348077,1762501832532,-16588.2226445,0.00017999,2]
[393348078,1762501832544,-40575.60869062,0.00017999,2]
[393348079,1762501832558,-4498.31984365,0.00017999,2]
[393348080,1762501832574,-2144.97989743,0.00017999,2]
[393348081,1762501832589,-3548.05906453,0.00017999,2]
[393348082,1762501832601,-1051.0,0.00017999,2]
[393348083,1762501832612,-511.27727383,0.00017999,2]
[393348084,1762501832627,-37866.88765968,0.00017999,2]
[393348085,1762501832639,-4979.82415718,0.00017999,2]
[393348088,1762501837563,-722.31533362,0.00017999,2]
[393348089,1762501837577,-4999.91255724,0.00017999,2]
[393348090,1762501837591,-5254.56915896,0.00017999,2]
[393348091,1762501837605,-3055.164867,0.00017999,2]
[393348092,1762501837618,-4457.9851755,0.00017999,2]
[393348093,1762501837632,-5353.2532445,0.00017999,2]
[393348094,1762501837646,-5574.83186308,0.00017999,2]
[393348095,1762501837659,-2217.072792,0.00017999,2]
[393348096,1762501837670,-903.67512708,0.00017999,2]
[393348097,1762501837680,-2158.04588351,0.00017999,2]
[393348098,1762501837691,-1627.4,0.00017999,2]
[393348099,1762501837702,-662.671405,0.00017999,2]
[393348100,1762501837804,-7445.97342819,0.00017999,2]
[393348101,1762501837814,-37274.39763257,0.00017999,2]
[393348107,1762501837888,-2180.13570943,0.00017999,2]
[393348132,1762501839681,-3472.33840529,0.00017999,2]
[393348134,1762501839693,-1510.04600883,0.00017999,2]
[393348148,1762501840170,-303.94,0.00017999,2]
[393348150,1762501840181,-718.81267108,0.00017999,2]
[393348151,1762501840192,-967.37447125,0.00017999,2]
[393348161,1762501842872,-23369.99996,0.00017999,2]
[393348162,1762501842895,-48747.02967619,0.00017999,2]
[393348163,1762501843019,-7683.24542656,0.00017999,2]
[393348164,1762501843055,-23518.00803153,0.00017999,2]
[393348175,1762501845856,-1440.09556512,0.00017999,2]
[393348180,1762501915167,100000.0,0.00038701,30]
[393348181,1762501936568,100000.0,0.00038701,30]
[393348183,1762502221951,36114.0673,0.00038701,30]
[393348185,1762502883773,828.35,0.00038701,120]
[393348186,1762502884019,828.35,0.00038701,120]
[393348187,1762502884288,828.35,0.00038701,120]
[393348188,1762502884611,828.35,0.00038701,120]
[393348189,1762502884860,828.35,0.00038701,120]
[393348190,1762502886140,828.35,0.00038701,120]
[393348191,1762502886813,828.35,0.00038701,120]
[393348192,1762502887062,828.35,0.00038701,120]
[393348193,1762502887327,828.35,0.00038701,120]
[393348194,1762502887568,828.35,0.00038701,120]
[393348195,1762502887811,828.35,0.00038701,120]
[393348196,1762502888067,828.35,0.00038701,120]
[393348197,1762502888595,828.35,0.00038701,120]
[393348198,1762502888673,828.35,0.00038701,120]
[393348199,1762502888823,828.35,0.00038701,120]
[393348200,1762502889079,828.35,0.00038701,120]
[393348201,1762502889325,828.35,0.00038701,120]
[393348202,1762502889573,828.35,0.00038701,120]
[393348203,1762502889809,828.35,0.00038701,120]
[393348204,1762502890047,828.35,0.00038701,120]
[393348205,1762502890271,828.35,0.00038701,120]
[393348206,1762502890491,828.35,0.00038701,120]
[393348207,1762502890735,828.35,0.00038701,120]
[393348208,1762502890992,828.43287296,0.00038701,120]
[393348209,1762502919885,500.0,0.00038701,120]
[393348210,1762502920108,500.0,0.00038701,120]
[393348211,1762502920443,500.0,0.00038701,120]
[393348212,1762502920672,518.81627137,0.00038701,120]
[393348214,1762503031990,-250.0,0.00017,2]
[393348215,1762503031999,-150.0,0.00017188,2]
[393348216,1762503032009,-250.0,0.00017333,2]
[393348217,1762503032019,-268.92814652,0.00017333,2]
[393348218,1762503032028,-200.0,0.00017347,2]
[393348219,1762503032038,-706.13542886,0.00017385,2]
[393348220,1762503032048,-293.86457114,0.00017385,2]
[393348228,1762503032257,-999.0,0.00017452,3]
[393348229,1762503032266,-3056.05,0.00017553,2]
[393348230,1762503032276,-221.84453216,0.00017567,2]
[393348232,1762503032286,-893.85465609,0.00017641,2]
[393348233,1762503032295,-749.17221756,0.0001767,2]
[393348234,1762503032306,-450.82778244,0.0001767,2]
[393348236,1762503032315,-300.0,0.00017712,2]
[393348238,1762503032325,-98.11331525,0.00017712,2]
[393348241,1762503032350,-401.88668475,0.00017712,2]
[393348243,1762503032359,-500.0,0.00017712,2]
[393348245,1762503032370,-500.0,0.00017712,2]
[393348248,1762503032379,-500.0,0.00017712,2]
[393348250,1762503032388,-490.0,0.00017713,2]
[393348252,1762503032398,-433.0,0.00017715,2]
[393348253,1762503032407,-150.99,0.00017716,2]
[393348255,1762503032416,-19656.21680038,0.00017716,2]
[393348263,1762503037887,-439.99064088,0.00017712,2]
[393348264,1762503037896,-500.0,0.00017712,2]
[393348265,1762503037906,-82.85095912,0.00017716,2]
[393348266,1762503038026,-7888.3422405,0.00017716,2]
[393348267,1762503038036,-3186.37437285,0.00017716,2]
[393348268,1762503038050,-14275.62248798,0.00017716,2]
[393348274,1762503040269,-254.52879237,0.00017716,2]
[393348275,1762503040286,-1749.3343468,0.00017716,2]
[393348276,1762503040295,-4067.1465,0.00017899,2]
[393348277,1762503040305,-225.18809262,0.00017899,2]
[393348278,1762503040315,-523.0388172,0.000179,2]
[393348281,1762503042976,-1213.83495506,0.000179,2]
[393348282,1762503042989,-1203.82348576,0.000179,2]
[393348283,1762503042998,-8.03258409,0.00017973,2]
[393348284,1762503043011,-157.8991872,0.00017973,2]
[393348285,1762503043020,-501.85241065,0.00017973,2]
[393348286,1762503043031,-1.06419667,0.00017973,2]
[393348287,1762503043040,-500.0,0.00017973,2]
[393348288,1762503043050,-529.41889361,0.00017973,2]
[393348289,1762503043060,-464.38411773,0.00017973,2]
[393348290,1762503043079,-36.34651669,0.00017973,2]
[393348291,1762503043088,-500.0,0.00017973,2]
[393348292,1762503043099,-502.64787463,0.00017973,2]
[393348293,1762503043108,-500.0,0.00017973,2]
[393348294,1762503043117,-55.09264224,0.00017973,2]
[393348295,1762503043132,-444.90735776,0.00017973,2]
[393348296,1762503043142,-398.09958233,0.00017973,2]
[393348297,1762503043153,-102.36703456,0.00017973,2]
[393348298,1762503043163,-500.0,0.00017973,2]
[393348299,1762503043171,-219.53517054,0.00017973,2]
[393348300,1762503043183,-280.46482946,0.00017973,2]
[393348301,1762503043193,-315.88047061,0.00017973,2]
[393348302,1762503043207,-184.11952939,0.00017973,2]
[393348303,1762503043217,-164.13523075,0.00017973,2]
[393348304,1762503043226,-178.72124867,0.00017973,2]
[393348316,1762503124857,500.0,0.00038701,120]
[393348317,1762503124895,151.0,0.00038701,120]
[393348318,1762503125466,500.0,0.00038701,120]
[393348319,1762503125502,151.0,0.00038701,120]
[393348320,1762503126098,500.0,0.00038701,120]
[393348321,1762503126701,500.0,0.00038701,120]
[393348322,1762503127307,500.0,0.00038701,120]
[393348323,1762503129910,620.0,0.00038701,120]
[393348324,1762503130410,200.0,0.00038701,120]
[393348325,1762503130493,151.0,0.00038701,120]
[393348326,1762503131138,151.0,0.00038701,120]
[393348327,1762503131758,151.0,0.00038701,120]
[393348328,1762503132371,151.0,0.00038701,120]
[393348329,1762503132966,151.0,0.00038701,120]
[393348330,1762503133948,151.0,0.00038701,120]
[393348331,1762503134267,151.0,0.00038701,120]
[393348332,1762503135930,212.51816335,0.00038701,120]
[393348333,1762503237207,2673.22,0.00038701,120]
[393348334,1762503237445,2673.22,0.00038701,120]
[393348335,1762503237682,2673.22,0.00038701,120]
[393348336,1762503237936,2673.22,0.00038701,120]
[393348337,1762503238203,2673.22,0.00038701,120]
[393348338,1762503238439,2673.22,0.00038701,120]
[393348339,1762503238677,2673.22,0.00038701,120]
[393348340,1762503238922,2673.22,0.00038701,120]
[393348341,1762503239170,2673.22,0.00038701,120]
[393348342,1762503239436,2673.22,0.00038701,120]
[393348343,1762503239712,2673.22,0.00038701,120]
[393348344,1762503239967,2673.22,0.00038701,120]
[393348345,1762503240201,2673.22,0.00038701,120]
[393348346,1762503240439,2673.22,0.00038701,120]
[393348347,1762503240682,2673.22,0.00038701,120]
[393348348,1762503240945,2673.22,0.00038701,120]
[393348349,1762503241201,2673.22,0.00038701,120]
[393348350,1762503241482,2673.22,0.00038701,120]
[393348351,1762503241731,2673.22,0.00038701,120]
[393348352,1762503241972,2673.22,0.00038701,120]
[393348353,1762503242229,2673.22,0.00038701,120]
[393348354,1762503242473,2673.22,0.00038701,120]
[393348355,1762503242707,2673.22,0.00038701,120]
[393348356,1762503242973,2673.39565348,0.00038701,120]
[393348358,1762503366922,10709.09,0.00038701,30]
[393348360,1762503383313,166.38,0.00025808,120]
[393348361,1762503420196,2509.73,0.00038701,90]
[393348362,1762503425591,176.16657067,0.00038701,120]
[393348363,1762503428750,-166.38,0.00017205,2]
[393348364,1762503440040,-150.0,0.00017287,2]
[393348365,1762503440063,-1176.04,0.00017413,2]